[Event "Late-Titled-Tuesday-Blitz-March-26-2024"]
[Site "Chess.com"]
[Date "2024.03.26"]
[Round "8"]
[White "KuzubovYuriy"]
[Black "CarlosjPineror"]
[Result "0-1"]
[WhiteElo "2903"]
[BlackElo "2740"]
[TimeControl "180+1"]
[EndTime "15:27:19 PDT"]
[Termination "CarlosjPineror won by resignation"]

1. d4 {[%clk 0:03:00.9]} 1... Nf6 {[%clk 0:02:59.6]} 2. c4 {[%clk 0:03:01.3]}
2... d6 {[%clk 0:03:00]} 3. Nc3 {[%clk 0:02:59.8]} 3... e5 {[%clk 0:02:59]} 4.
Nf3 {[%clk 0:03:00.4]} 4... e4 {[%clk 0:02:57.9]} 5. Nd2 {[%clk 0:02:55.3]} 5...
Qe7 {[%clk 0:02:50.5]} 6. e3 {[%clk 0:02:50]} 6... c6 {[%clk 0:02:43.8]} 7. b4
{[%clk 0:02:47.2]} 7... Bf5 {[%clk 0:02:43.5]} 8. a4 {[%clk 0:02:45]} 8... g6
{[%clk 0:02:40.8]} 9. h3 {[%clk 0:02:34.3]} 9... h5 {[%clk 0:02:40.3]} 10. a5
{[%clk 0:02:30.3]} 10... Bg7 {[%clk 0:02:36.8]} 11. Ba3 {[%clk 0:02:27.5]} 11...
a6 {[%clk 0:02:34.9]} 12. Be2 {[%clk 0:02:10]} 12... Nbd7 {[%clk 0:02:32.5]} 13.
Rb1 {[%clk 0:02:02.3]} 13... h4 {[%clk 0:02:29.9]} 14. Qb3 {[%clk 0:01:51.3]}
14... O-O {[%clk 0:02:29.5]} 15. g4 {[%clk 0:01:48]} 15... hxg3 {[%clk
0:02:29.1]} 16. fxg3 {[%clk 0:01:48.6]} 16... g5 {[%clk 0:02:28.3]} 17. h4
{[%clk 0:01:38.5]} 17... gxh4 {[%clk 0:02:06]} 18. Rxh4 {[%clk 0:01:37]} 18...
Rfe8 {[%clk 0:02:06.6]} 19. Rf4 {[%clk 0:01:11]} 19... Bh7 {[%clk 0:02:03.5]}
20. Kd1 {[%clk 0:01:00.5]} 20... Nf8 {[%clk 0:02:01.7]} 21. Kc2 {[%clk
0:00:59.5]} 21... Ne6 {[%clk 0:02:01.3]} 22. Rh4 {[%clk 0:00:56.8]} 22... Bg6
{[%clk 0:01:52.2]} 23. Kb2 {[%clk 0:00:53.1]} 23... Ng5 {[%clk 0:01:51.6]} 24.
Rf1 {[%clk 0:00:48]} 24... Nf3 {[%clk 0:01:43.5]} 25. Nxf3 {[%clk 0:00:40.2]}
25... exf3 {[%clk 0:01:44.4]} 26. Rxf3 {[%clk 0:00:40.1]} 26... Bh5 {[%clk
0:01:30.9]} 27. Rxf6 {[%clk 0:00:19.1]} 27... Bxe2 {[%clk 0:01:23.9]} 28. Rf2
{[%clk 0:00:18.9]} 28... Bd3 {[%clk 0:01:20.2]} 29. Nd1 {[%clk 0:00:15.3]} 29...
Bg6 {[%clk 0:01:18.1]} 30. Ka2 {[%clk 0:00:15.2]} 30... Bf6 {[%clk 0:01:10.8]}
31. Rhh2 {[%clk 0:00:14.3]} 31... Bg5 {[%clk 0:01:11.4]} 32. Bc1 {[%clk
0:00:13.5]} 32... Qe4 {[%clk 0:01:11.2]} 33. Nc3 {[%clk 0:00:12.6]} 33... Qg4
{[%clk 0:01:11]} 34. Bd2 {[%clk 0:00:09.4]} 34... Bxe3 {[%clk 0:00:59.5]} 35.
Bxe3 {[%clk 0:00:08.2]} 35... Rxe3 {[%clk 0:01:00.4]} 36. Qb2 {[%clk 0:00:06.8]}
36... Qxd4 {[%clk 0:00:54.6]} 37. Rh4 {[%clk 0:00:06.4]} 37... Qxc3 {[%clk
0:00:54]} 38. Qxc3 {[%clk 0:00:04.1]} 38... Rxc3 {[%clk 0:00:54.9]} 39. Rfh2
{[%clk 0:00:03.7]} 39... Kg7 {[%clk 0:00:53.9]} 0-1

[Event "Late-Titled-Tuesday-Blitz-March-26-2024"]
[Site "Chess.com"]
[Date "2024.03.26"]
[Round "8"]
[White "MPCandelario"]
[Black "noblerone"]
[Result "1-0"]
[WhiteElo "2674"]
[BlackElo "2540"]
[TimeControl "180+1"]
[EndTime "15:27:22 PDT"]
[Termination "MPCandelario won on time"]

1. e4 {[%clk 0:03:00.9]} 1... c5 {[%clk 0:02:56.7]} 2. Nf3 {[%clk 0:03:00.8]}
2... e6 {[%clk 0:02:56.3]} 3. d4 {[%clk 0:03:01.2]} 3... cxd4 {[%clk 0:02:57.2]}
4. Nxd4 {[%clk 0:03:01.6]} 4... Qb6 {[%clk 0:02:56.4]} 5. Nb3 {[%clk 0:03:00]}
5... Qc7 {[%clk 0:02:56.6]} 6. Bd3 {[%clk 0:02:56.9]} 6... Nf6 {[%clk
0:02:54.8]} 7. O-O {[%clk 0:02:54.5]} 7... h5 {[%clk 0:02:38.1]} 8. f4 {[%clk
0:02:39.9]} 8... h4 {[%clk 0:02:25.4]} 9. Nc3 {[%clk 0:02:30.5]} 9... a6 {[%clk
0:02:24.7]} 10. e5 {[%clk 0:02:29.4]} 10... Nd5 {[%clk 0:02:15.1]} 11. Nxd5
{[%clk 0:02:27.8]} 11... exd5 {[%clk 0:02:16]} 12. Qf3 {[%clk 0:02:22.3]} 12...
b5 {[%clk 0:02:11.9]} 13. a4 {[%clk 0:02:14.4]} 13... b4 {[%clk 0:02:07.9]} 14.
f5 {[%clk 0:02:02]} 14... h3 {[%clk 0:01:59]} 15. g3 {[%clk 0:01:50.1]} 15...
Bb7 {[%clk 0:01:56.1]} 16. Bf4 {[%clk 0:01:37.3]} 16... Bc5+ {[%clk 0:01:52.1]}
17. Nxc5 {[%clk 0:01:34.4]} 17... Qxc5+ {[%clk 0:01:53]} 18. Qf2 {[%clk
0:01:24.6]} 18... d4 {[%clk 0:01:19.1]} 19. Rfe1 {[%clk 0:01:18.4]} 19... Nc6
{[%clk 0:01:09.5]} 20. e6 {[%clk 0:01:12.6]} 20... d6 {[%clk 0:00:54.1]} 21.
exf7+ {[%clk 0:01:10.6]} 21... Kxf7 {[%clk 0:00:55]} 22. Re6 {[%clk 0:01:04.9]}
22... Ne5 {[%clk 0:00:47.8]} 23. Bxe5 {[%clk 0:00:46.3]} 23... Qc6 {[%clk
0:00:35]} 24. Kf1 {[%clk 0:00:32.6]} 24... Qg2+ {[%clk 0:00:15.1]} 25. Ke2
{[%clk 0:00:26.3]} 25... Bf3+ {[%clk 0:00:04.1]} 26. Ke1 {[%clk 0:00:24.1]}
26... dxe5 {[%clk 0:00:01.8]} 27. Bc4 {[%clk 0:00:22.6]} 1-0

[Event "Late-Titled-Tuesday-Blitz-March-26-2024"]
[Site "Chess.com"]
[Date "2024.03.26"]
[Round "8"]
[White "BabageldiAnnaberdiyev"]
[Black "HelenaWalker2912"]
[Result "1-0"]
[WhiteElo "2630"]
[BlackElo "2497"]
[TimeControl "180+1"]
[EndTime "15:27:25 PDT"]
[Termination "BabageldiAnnaberdiyev won by resignation"]

1. e4 {[%clk 0:03:00.9]} 1... c6 {[%clk 0:02:33.2]} 2. d4 {[%clk 0:03:00.2]}
2... d5 {[%clk 0:02:33.6]} 3. Nd2 {[%clk 0:03:00.8]} 3... dxe4 {[%clk
0:02:33.7]} 4. Nxe4 {[%clk 0:03:01.7]} 4... Nf6 {[%clk 0:02:33.8]} 5. Nxf6+
{[%clk 0:03:01.8]} 5... exf6 {[%clk 0:02:34.7]} 6. Bc4 {[%clk 0:03:01.7]} 6...
Bd6 {[%clk 0:02:34.3]} 7. Qe2+ {[%clk 0:03:01.7]} 7... Be7 {[%clk 0:02:34.9]} 8.
Nf3 {[%clk 0:03:01]} 8... O-O {[%clk 0:02:35.1]} 9. O-O {[%clk 0:03:01.6]} 9...
Bd6 {[%clk 0:02:35.2]} 10. Re1 {[%clk 0:03:01.8]} 10... Na6 {[%clk 0:02:34.3]}
11. c3 {[%clk 0:03:01]} 11... Nc7 {[%clk 0:02:34.2]} 12. Qc2 {[%clk 0:02:57.7]}
12... Bg4 {[%clk 0:02:27.1]} 13. Nd2 {[%clk 0:02:47.8]} 13... Qd7 {[%clk
0:02:22.7]} 14. Nf1 {[%clk 0:02:46.7]} 14... Rfe8 {[%clk 0:02:19.3]} 15. Bd2
{[%clk 0:02:46.8]} 15... Bf5 {[%clk 0:02:16.3]} 16. Bd3 {[%clk 0:02:46.4]} 16...
Bxd3 {[%clk 0:02:13.7]} 17. Qxd3 {[%clk 0:02:47.3]} 17... b5 {[%clk 0:02:13]}
18. a4 {[%clk 0:02:44.5]} 18... a6 {[%clk 0:01:42.4]} 19. Rxe8+ {[%clk
0:02:40.8]} 19... Rxe8 {[%clk 0:01:41.7]} 20. axb5 {[%clk 0:02:41.2]} 20... axb5
{[%clk 0:01:39.1]} 21. b3 {[%clk 0:02:41.7]} 21... h5 {[%clk 0:01:32.4]} 22. c4
{[%clk 0:02:41.5]} 22... Qg4 {[%clk 0:01:26.5]} 23. Be3 {[%clk 0:02:33.5]} 23...
bxc4 {[%clk 0:01:24.6]} 24. bxc4 {[%clk 0:02:32.2]} 24... Rb8 {[%clk 0:01:25.1]}
25. h3 {[%clk 0:02:31.5]} 25... Qe6 {[%clk 0:01:20.8]} 26. Rd1 {[%clk
0:02:28.6]} 26... h4 {[%clk 0:01:16.8]} 27. Nd2 {[%clk 0:02:16.2]} 27... g5
{[%clk 0:00:41.6]} 28. Qe4 {[%clk 0:02:02.3]} 28... Re8 {[%clk 0:00:20.3]} 29.
Qxe6 {[%clk 0:01:50]} 29... fxe6 {[%clk 0:00:21.2]} 30. Ne4 {[%clk 0:01:41.2]}
30... Be7 {[%clk 0:00:17.1]} 31. Nc5 {[%clk 0:01:41.8]} 31... Bxc5 {[%clk
0:00:14.2]} 32. dxc5 {[%clk 0:01:42.7]} 32... Kf7 {[%clk 0:00:12.2]} 33. Rd6
{[%clk 0:01:40.5]} 33... e5 {[%clk 0:00:08]} 34. Rxc6 {[%clk 0:01:38.7]} 34...
Ne6 {[%clk 0:00:08.6]} 35. Ra6 {[%clk 0:01:32.4]} 35... Rd8 {[%clk 0:00:06.9]}
36. c6 {[%clk 0:01:29.4]} 36... Rd1+ {[%clk 0:00:05.7]} 37. Kh2 {[%clk
0:01:29.3]} 37... Rd3 {[%clk 0:00:05.6]} 38. Ra7+ {[%clk 0:01:24.9]} 38... Ke8
{[%clk 0:00:04.6]} 39. Bb6 {[%clk 0:01:04.8]} 39... Rd6 {[%clk 0:00:03.3]} 40.
c7 {[%clk 0:01:02.3]} 40... Rc6 {[%clk 0:00:02.8]} 41. Ra8+ {[%clk 0:00:56.6]}
41... Ke7 {[%clk 0:00:02]} 42. c8=Q {[%clk 0:00:55.2]} 1-0

[Event "Late-Titled-Tuesday-Blitz-March-26-2024"]
[Site "Chess.com"]
[Date "2024.03.26"]
[Round "8"]
[White "prime-morty"]
[Black "Romkachess"]
[Result "1-0"]
[WhiteElo "2575"]
[BlackElo "2686"]
[TimeControl "180+1"]
[EndTime "15:27:27 PDT"]
[Termination "prime-morty won by resignation"]

1. c4 {[%clk 0:03:00.9]} 1... e5 {[%clk 0:02:53.1]} 2. Nc3 {[%clk 0:03:01.2]}
2... Nc6 {[%clk 0:02:51.3]} 3. Nf3 {[%clk 0:03:01.7]} 3... Nf6 {[%clk
0:02:50.5]} 4. e3 {[%clk 0:03:00.7]} 4... Bb4 {[%clk 0:02:50.1]} 5. Qc2 {[%clk
0:02:50.8]} 5... O-O {[%clk 0:02:48.3]} 6. Nd5 {[%clk 0:02:50]} 6... Be7 {[%clk
0:02:44.6]} 7. Ng5 {[%clk 0:02:49.1]} 7... g6 {[%clk 0:02:39.7]} 8. Nxe7+ {[%clk
0:02:49.1]} 8... Qxe7 {[%clk 0:02:38.5]} 9. a3 {[%clk 0:02:44.2]} 9... a5 {[%clk
0:02:35.1]} 10. h4 {[%clk 0:02:43.8]} 10... h5 {[%clk 0:02:25.8]} 11. b3 {[%clk
0:02:37.1]} 11... d5 {[%clk 0:02:19]} 12. cxd5 {[%clk 0:02:36.5]} 12... Nxd5
{[%clk 0:02:18.7]} 13. Bc4 {[%clk 0:02:34.8]} 13... Rd8 {[%clk 0:02:01.5]} 14.
Qe4 {[%clk 0:02:19.3]} 14... Bf5 {[%clk 0:01:54.1]} 15. Qf3 {[%clk 0:02:12.2]}
15... e4 {[%clk 0:01:54]} 16. Qg3 {[%clk 0:02:09.8]} 16... Ne5 {[%clk
0:01:54.1]} 17. Bb2 {[%clk 0:02:05.5]} 17... Nxc4 {[%clk 0:01:44.1]} 18. bxc4
{[%clk 0:02:05.4]} 18... Nb6 {[%clk 0:01:44.8]} 19. Rc1 {[%clk 0:02:03.9]} 19...
Rd3 {[%clk 0:01:37.4]} 20. f3 {[%clk 0:01:52]} 20... Rad8 {[%clk 0:01:32.7]} 21.
fxe4 {[%clk 0:01:44.5]} 21... Bg4 {[%clk 0:01:16.5]} 22. O-O {[%clk 0:01:42.4]}
22... f5 {[%clk 0:00:54]} 23. exf5 {[%clk 0:01:37.9]} 23... gxf5 {[%clk
0:00:54]} 24. Nf3 {[%clk 0:01:16.3]} 24... c6 {[%clk 0:00:13.9]} 25. Ne5 {[%clk
0:01:08.7]} 25... Rxd2 {[%clk 0:00:07.4]} 26. Nxg4 {[%clk 0:01:09]} 26... fxg4
{[%clk 0:00:04.6]} 27. Bf6 {[%clk 0:01:08.1]} 27... Qe4 {[%clk 0:00:01.7]} 28.
Bxd8 {[%clk 0:01:07.1]} 28... Rxd8 {[%clk 0:00:02.6]} 29. Rf4 {[%clk 0:00:53.9]}
29... Qd3 {[%clk 0:00:02.3]} 30. Rf2 {[%clk 0:00:33.2]} 30... Na4 {[%clk
0:00:02.2]} 31. Qc7 {[%clk 0:00:30.6]} 31... Re8 {[%clk 0:00:01.8]} 32. Qf7+
{[%clk 0:00:30.3]} 32... Kh8 {[%clk 0:00:02.3]} 33. Qxe8+ {[%clk 0:00:30.7]}
33... Kh7 {[%clk 0:00:02.8]} 34. Rf7+ {[%clk 0:00:29.8]} 1-0

[Event "Late-Titled-Tuesday-Blitz-March-26-2024"]
[Site "Chess.com"]
[Date "2024.03.26"]
[Round "8"]
[White "expii"]
[Black "MathiasWomacka"]
[Result "1/2-1/2"]
[WhiteElo "2224"]
[BlackElo "2477"]
[TimeControl "180+1"]
[EndTime "15:27:27 PDT"]
[Termination "Game drawn by repetition"]

1. e4 {[%clk 0:02:58]} 1... c5 {[%clk 0:02:59.8]} 2. Nf3 {[%clk 0:02:55.3]} 2...
d6 {[%clk 0:02:59.9]} 3. d4 {[%clk 0:02:56.2]} 3... cxd4 {[%clk 0:02:59.7]} 4.
Nxd4 {[%clk 0:02:53.7]} 4... Nf6 {[%clk 0:03:00.2]} 5. Nc3 {[%clk 0:02:53.7]}
5... a6 {[%clk 0:03:00.7]} 6. g3 {[%clk 0:02:52.8]} 6... e5 {[%clk 0:03:00.6]}
7. Nde2 {[%clk 0:02:50.6]} 7... Nbd7 {[%clk 0:03:00.5]} 8. Bg2 {[%clk
0:02:49.9]} 8... b5 {[%clk 0:03:00.4]} 9. a3 {[%clk 0:02:47.9]} 9... Bb7 {[%clk
0:02:58.3]} 10. Be3 {[%clk 0:02:46.3]} 10... Be7 {[%clk 0:02:58.2]} 11. O-O
{[%clk 0:02:44.8]} 11... O-O {[%clk 0:02:58.1]} 12. h3 {[%clk 0:02:41.4]} 12...
Rc8 {[%clk 0:02:55.1]} 13. f4 {[%clk 0:02:40.7]} 13... Nc5 {[%clk 0:02:47.6]}
14. Bxc5 {[%clk 0:02:36.6]} 14... Rxc5 {[%clk 0:02:46]} 15. f5 {[%clk
0:02:37.4]} 15... d5 {[%clk 0:02:30.3]} 16. g4 {[%clk 0:02:31.4]} 16... d4
{[%clk 0:02:26.4]} 17. Nb1 {[%clk 0:02:27]} 17... Nxe4 {[%clk 0:02:17.7]} 18.
Qd3 {[%clk 0:02:21.7]} 18... Nd6 {[%clk 0:02:14.1]} 19. Nd2 {[%clk 0:02:15]}
19... Bxg2 {[%clk 0:02:09.8]} 20. Kxg2 {[%clk 0:02:15.9]} 20... Bg5 {[%clk
0:02:03.4]} 21. Ne4 {[%clk 0:02:14.8]} 21... Nxe4 {[%clk 0:02:03]} 22. Qxe4
{[%clk 0:02:15.7]} 22... Qc7 {[%clk 0:01:52.2]} 23. c3 {[%clk 0:01:53.8]} 23...
dxc3 {[%clk 0:01:46.8]} 24. Nxc3 {[%clk 0:01:54.7]} 24... Rc4 {[%clk 0:01:46.8]}
25. Qf3 {[%clk 0:01:54]} 25... Rd8 {[%clk 0:01:35.9]} 26. Ne4 {[%clk 0:01:51.3]}
26... Bf4 {[%clk 0:01:32.6]} 27. Rad1 {[%clk 0:01:49.7]} 27... h6 {[%clk
0:01:28.2]} 28. Rxd8+ {[%clk 0:01:44.9]} 28... Qxd8 {[%clk 0:01:29.1]} 29. Rd1
{[%clk 0:01:45.3]} 29... Rc2+ {[%clk 0:01:25.3]} 30. Kh1 {[%clk 0:01:43.5]}
30... Qc7 {[%clk 0:01:24]} 31. Qd3 {[%clk 0:01:32.8]} 31... Rxb2 {[%clk
0:01:12.2]} 32. Qd8+ {[%clk 0:01:29.8]} 32... Qxd8 {[%clk 0:01:11.6]} 33. Rxd8+
{[%clk 0:01:30.7]} 33... Kh7 {[%clk 0:01:11.4]} 34. f6 {[%clk 0:01:24.7]} 34...
Re2 {[%clk 0:01:03.8]} 35. fxg7 {[%clk 0:01:18.4]} 35... Kxg7 {[%clk 0:01:02.8]}
36. Nd6 {[%clk 0:01:18.1]} 36... e4 {[%clk 0:00:58.3]} 37. Nf5+ {[%clk 0:01:16]}
37... Kf6 {[%clk 0:00:57.9]} 38. Ra8 {[%clk 0:01:11.4]} 38... e3 {[%clk
0:00:52.2]} 39. Rxa6+ {[%clk 0:01:10.4]} 39... Ke5 {[%clk 0:00:52.8]} 40. Kg1
{[%clk 0:01:05.6]} 40... Ke4 {[%clk 0:00:48]} 41. Kf1 {[%clk 0:00:59]} 41... Ra2
{[%clk 0:00:46.9]} 42. Ra8 {[%clk 0:00:54.7]} 42... Kf3 {[%clk 0:00:43.9]} 43.
Nd4+ {[%clk 0:00:52.8]} 43... Ke4 {[%clk 0:00:42.1]} 44. Ne2 {[%clk 0:00:53.2]}
44... Be5 {[%clk 0:00:38.2]} 45. Re8 {[%clk 0:00:51.9]} 45... f6 {[%clk
0:00:37.9]} 46. Nc3+ {[%clk 0:00:51.4]} 46... Kf3 {[%clk 0:00:37.9]} 47. Nxa2
{[%clk 0:00:52.3]} 47... e2+ {[%clk 0:00:37.6]} 48. Ke1 {[%clk 0:00:51.6]} 48...
Bg3+ {[%clk 0:00:36.8]} 49. Kd2 {[%clk 0:00:52]} 49... Bf4+ {[%clk 0:00:35.6]}
50. Ke1 {[%clk 0:00:48.7]} 50... Bg3+ {[%clk 0:00:35.6]} 51. Kd2 {[%clk
0:00:48.7]} 51... Bf4+ {[%clk 0:00:34.1]} 52. Kd3 {[%clk 0:00:48.6]} 52... Be5
{[%clk 0:00:32.5]} 53. Kd2 {[%clk 0:00:42.3]} 53... Bf4+ {[%clk 0:00:31.8]}
1/2-1/2

[Event "Late-Titled-Tuesday-Blitz-March-26-2024"]
[Site "Chess.com"]
[Date "2024.03.26"]
[Round "8"]
[White "Revan_2002"]
[Black "prochn"]
[Result "1-0"]
[WhiteElo "2656"]
[BlackElo "2516"]
[TimeControl "180+1"]
[EndTime "15:27:32 PDT"]
[Termination "Revan_2002 won on time"]

1. Nf3 {[%clk 0:03:00.9]} 1... d5 {[%clk 0:02:59.7]} 2. g3 {[%clk 0:03:01.8]}
2... c6 {[%clk 0:03:00]} 3. Bg2 {[%clk 0:03:02.4]} 3... Nf6 {[%clk 0:03:00.7]}
4. O-O {[%clk 0:03:03]} 4... Bf5 {[%clk 0:03:00.9]} 5. d3 {[%clk 0:03:03.4]}
5... h6 {[%clk 0:03:00.9]} 6. c4 {[%clk 0:02:56.9]} 6... e6 {[%clk 0:03:00.9]}
7. cxd5 {[%clk 0:02:56.8]} 7... exd5 {[%clk 0:03:01]} 8. Nc3 {[%clk 0:02:57.4]}
8... Be7 {[%clk 0:03:00.5]} 9. Nd4 {[%clk 0:02:57.8]} 9... Bg6 {[%clk 0:02:57]}
10. e4 {[%clk 0:02:57.2]} 10... O-O {[%clk 0:02:50.6]} 11. e5 {[%clk 0:02:52.7]}
11... Nfd7 {[%clk 0:02:46.1]} 12. f4 {[%clk 0:02:40.1]} 12... Bc5 {[%clk
0:02:02.1]} 13. Be3 {[%clk 0:02:39.1]} 13... Re8 {[%clk 0:02:00.9]} 14. Kh1
{[%clk 0:02:25.1]} 14... Bxd4 {[%clk 0:01:48.2]} 15. Bxd4 {[%clk 0:02:24.7]}
15... f5 {[%clk 0:01:48.5]} 16. Qb3 {[%clk 0:02:16]} 16... Nb6 {[%clk
0:01:05.9]} 17. a4 {[%clk 0:02:13.5]} 17... Qe7 {[%clk 0:00:59.6]} 18. a5 {[%clk
0:02:11.7]} 18... Nc8 {[%clk 0:00:59.7]} 19. a6 {[%clk 0:02:06]} 19... Nxa6
{[%clk 0:00:57.4]} 20. Nxd5 {[%clk 0:01:44.3]} 20... cxd5 {[%clk 0:00:51.8]} 21.
Qxd5+ {[%clk 0:01:19.4]} 21... Bf7 {[%clk 0:00:50.8]} 22. Qxb7 {[%clk
0:01:19.2]} 22... Nc7 {[%clk 0:00:48.3]} 23. Rfc1 {[%clk 0:01:15.1]} 23... Ne6
{[%clk 0:00:36.9]} 24. Qxa8 {[%clk 0:01:09.9]} 24... Nxd4 {[%clk 0:00:36]} 25.
Rxc8 {[%clk 0:01:09]} 25... Kh7 {[%clk 0:00:30.3]} 26. Rxe8 {[%clk 0:01:03.9]}
26... Bxe8 {[%clk 0:00:30.2]} 27. Qxa7 {[%clk 0:01:04.5]} 27... Qb4 {[%clk
0:00:29.1]} 28. Qa3 {[%clk 0:00:57.8]} 28... Qd2 {[%clk 0:00:28.1]} 29. Qc3
{[%clk 0:00:57.6]} 29... Qe3 {[%clk 0:00:27]} 30. Qc5 {[%clk 0:00:41.4]} 30...
Bh5 {[%clk 0:00:25.8]} 31. Qc1 {[%clk 0:00:35.5]} 31... Qxd3 {[%clk 0:00:18]}
32. Qc3 {[%clk 0:00:35.2]} 32... Qxc3 {[%clk 0:00:02.6]} 33. bxc3 {[%clk
0:00:35]} 1-0

[Event "Late-Titled-Tuesday-Blitz-March-26-2024"]
[Site "Chess.com"]
[Date "2024.03.26"]
[Round "8"]
[White "xasid81"]
[Black "Doublekk14"]
[Result "1-0"]
[WhiteElo "2628"]
[BlackElo "2422"]
[TimeControl "180+1"]
[EndTime "15:27:34 PDT"]
[Termination "xasid81 won on time"]

1. b3 {[%clk 0:03:00.9]} 1... Nf6 {[%clk 0:02:52.2]} 2. Bb2 {[%clk 0:03:00.6]}
2... e6 {[%clk 0:02:52.8]} 3. Nf3 {[%clk 0:03:00.4]} 3... d5 {[%clk 0:02:53.3]}
4. g3 {[%clk 0:03:00.9]} 4... Be7 {[%clk 0:02:53.8]} 5. Bg2 {[%clk 0:03:01.5]}
5... c5 {[%clk 0:02:54.1]} 6. O-O {[%clk 0:03:02]} 6... Nc6 {[%clk 0:02:54.6]}
7. e3 {[%clk 0:03:02.4]} 7... O-O {[%clk 0:02:53.2]} 8. d4 {[%clk 0:03:03]} 8...
b6 {[%clk 0:02:52.3]} 9. dxc5 {[%clk 0:03:02.2]} 9... bxc5 {[%clk 0:02:52.3]}
10. c4 {[%clk 0:02:59.9]} 10... Ba6 {[%clk 0:02:52.1]} 11. Nbd2 {[%clk
0:02:57.8]} 11... Rc8 {[%clk 0:02:51.3]} 12. Re1 {[%clk 0:02:52.4]} 12... d4
{[%clk 0:02:50.9]} 13. exd4 {[%clk 0:02:51.6]} 13... Nxd4 {[%clk 0:02:48.8]} 14.
Nxd4 {[%clk 0:02:49.3]} 14... cxd4 {[%clk 0:02:49]} 15. Nf3 {[%clk 0:02:49.3]}
15... Bb4 {[%clk 0:02:36.9]} 16. Re2 {[%clk 0:02:37.4]} 16... Bc3 {[%clk
0:02:15.1]} 17. Nxd4 {[%clk 0:02:27.3]} 17... Bxb2 {[%clk 0:02:06.9]} 18. Rxb2
{[%clk 0:02:26.6]} 18... Qb6 {[%clk 0:01:51.6]} 19. Nf3 {[%clk 0:02:06.4]} 19...
Rfd8 {[%clk 0:01:38]} 20. Qe2 {[%clk 0:02:02]} 20... Nd5 {[%clk 0:01:12.1]} 21.
Rd2 {[%clk 0:01:52.8]} 21... Nb4 {[%clk 0:00:44.9]} 22. Rad1 {[%clk 0:01:36.3]}
22... Rxd2 {[%clk 0:00:38]} 23. Qxd2 {[%clk 0:01:22.4]} 23... h6 {[%clk
0:00:36.8]} 24. h4 {[%clk 0:01:17.1]} 24... Bb7 {[%clk 0:00:31]} 25. Ne1 {[%clk
0:01:08.4]} 25... Bxg2 {[%clk 0:00:22.8]} 26. Nxg2 {[%clk 0:01:09.3]} 26... a5
{[%clk 0:00:19.1]} 27. Nf4 {[%clk 0:01:05.3]} 27... Qc5 {[%clk 0:00:14.7]} 28.
Nd3 {[%clk 0:01:01.2]} 28... Nxd3 {[%clk 0:00:13.6]} 29. Qxd3 {[%clk 0:01:02.1]}
29... Qa3 {[%clk 0:00:12.3]} 30. Qc2 {[%clk 0:00:54.7]} 30... a4 {[%clk
0:00:10.4]} 31. Rb1 {[%clk 0:00:53]} 31... Rb8 {[%clk 0:00:09.5]} 32. c5 {[%clk
0:00:50.3]} 32... axb3 {[%clk 0:00:07.8]} 33. Rxb3 {[%clk 0:00:41.7]} 33... Rxb3
{[%clk 0:00:06.6]} 34. axb3 {[%clk 0:00:42.1]} 34... Qa6 {[%clk 0:00:04.9]} 35.
c6 {[%clk 0:00:39.9]} 35... Qa1+ {[%clk 0:00:04.6]} 36. Kg2 {[%clk 0:00:38.3]}
36... Qa8 {[%clk 0:00:03.8]} 37. b4 {[%clk 0:00:37.4]} 1-0

[Event "Late-Titled-Tuesday-Blitz-March-26-2024"]
[Site "Chess.com"]
[Date "2024.03.26"]
[Round "8"]
[White "Shiner22"]
[Black "CURRUTACO59"]
[Result "0-1"]
[WhiteElo "2350"]
[BlackElo "2285"]
[TimeControl "180+1"]
[EndTime "15:27:35 PDT"]
[Termination "CURRUTACO59 won on time"]

1. e4 {[%clk 0:03:00.9]} 1... e5 {[%clk 0:02:55.9]} 2. Nf3 {[%clk 0:03:00]} 2...
Nc6 {[%clk 0:02:54.3]} 3. Bc4 {[%clk 0:02:59.6]} 3... Bc5 {[%clk 0:02:53.6]} 4.
O-O {[%clk 0:02:59.1]} 4... d6 {[%clk 0:02:52.2]} 5. b4 {[%clk 0:02:58.5]} 5...
Bb6 {[%clk 0:02:50.3]} 6. c3 {[%clk 0:02:52.5]} 6... Nf6 {[%clk 0:02:49.3]} 7.
d3 {[%clk 0:02:45.7]} 7... h6 {[%clk 0:02:42.5]} 8. a4 {[%clk 0:02:44.5]} 8...
a5 {[%clk 0:02:40.7]} 9. b5 {[%clk 0:02:44.6]} 9... Ne7 {[%clk 0:02:39.9]} 10.
h3 {[%clk 0:02:39]} 10... Ng6 {[%clk 0:02:38.7]} 11. Re1 {[%clk 0:02:34.2]}
11... O-O {[%clk 0:02:35.4]} 12. d4 {[%clk 0:02:34.6]} 12... Nh5 {[%clk
0:01:58.9]} 13. dxe5 {[%clk 0:02:32.5]} 13... dxe5 {[%clk 0:01:57.1]} 14. Ba3
{[%clk 0:02:31.9]} 14... Re8 {[%clk 0:01:33.6]} 15. Qb3 {[%clk 0:02:15]} 15...
Qf6 {[%clk 0:01:32]} 16. Nbd2 {[%clk 0:02:06.2]} 16... Nhf4 {[%clk 0:01:28.3]}
17. Bf1 {[%clk 0:01:59.3]} 17... Be6 {[%clk 0:01:18.3]} 18. c4 {[%clk
0:01:56.1]} 18... Rad8 {[%clk 0:00:53]} 19. Rad1 {[%clk 0:01:49.2]} 19... Nh4
{[%clk 0:00:30.4]} 20. Bb2 {[%clk 0:01:31.1]} 20... Nxf3+ {[%clk 0:00:26.8]} 21.
Nxf3 {[%clk 0:01:28.5]} 21... Ng6 {[%clk 0:00:09.2]} 22. Qc3 {[%clk 0:01:08.7]}
22... Bc5 {[%clk 0:00:08.3]} 23. Rxd8 {[%clk 0:00:11.6]} 23... Rxd8 {[%clk
0:00:07.4]} 24. Rc1 {[%clk 0:00:07.9]} 24... b6 {[%clk 0:00:06.5]} 0-1